[Event "Early-Titled-Tuesday-Blitz-April-16-2024"]
[Site "Chess.com"]
[Date "2024.04.16"]
[Round "4"]
[White "kripri"]
[Black "Bastiandash"]
[Result "0-1"]
[WhiteElo "2340"]
[BlackElo "2538"]
[TimeControl "180+1"]
[EndTime "8:39:59 PDT"]
[Termination "Bastiandash won by resignation"]

1. e4 {[%clk 0:03:00.9]} 1... c5 {[%clk 0:02:52.4]} 2. Nf3 {[%clk 0:03:00.8]}
2... e6 {[%clk 0:02:53.2]} 3. d4 {[%clk 0:03:00.8]} 3... cxd4 {[%clk 0:02:54.1]}
4. Nxd4 {[%clk 0:03:01.6]} 4... a6 {[%clk 0:02:54.8]} 5. Bd3 {[%clk 0:03:01]}
5... Qb6 {[%clk 0:02:53.6]} 6. Nb3 {[%clk 0:02:53.7]} 6... Qc7 {[%clk
0:02:53.7]} 7. O-O {[%clk 0:02:52.7]} 7... Nf6 {[%clk 0:02:54.3]} 8. Qe2 {[%clk
0:02:47.8]} 8... d6 {[%clk 0:02:54]} 9. c4 {[%clk 0:02:47.6]} 9... Be7 {[%clk
0:02:52]} 10. Nc3 {[%clk 0:02:47.4]} 10... b6 {[%clk 0:02:52.2]} 11. Be3 {[%clk
0:02:47.4]} 11... Bb7 {[%clk 0:02:53.1]} 12. Rac1 {[%clk 0:02:44.6]} 12... Nbd7
{[%clk 0:02:53.5]} 13. Rfd1 {[%clk 0:02:43.7]} 13... O-O {[%clk 0:02:53.9]} 14.
f3 {[%clk 0:02:38.9]} 14... Rac8 {[%clk 0:02:53.6]} 15. Nd2 {[%clk 0:02:06.9]}
15... Qb8 {[%clk 0:02:43.9]} 16. b3 {[%clk 0:01:54.4]} 16... d5 {[%clk
0:02:39.5]} 17. cxd5 {[%clk 0:01:52.3]} 17... exd5 {[%clk 0:02:28.4]} 18. exd5
{[%clk 0:01:52.1]} 18... Bd6 {[%clk 0:02:16]} 19. g3 {[%clk 0:01:51.7]} 19...
Rfe8 {[%clk 0:02:15.2]} 20. Nde4 {[%clk 0:01:46.3]} 20... Ba3 {[%clk 0:01:37.1]}
21. Rc2 {[%clk 0:01:36.3]} 21... b5 {[%clk 0:01:21.2]} 22. Bf4 {[%clk
0:01:15.4]} 22... Qa7+ {[%clk 0:01:10.6]} 23. Be3 {[%clk 0:01:15.2]} 23... Qa8
{[%clk 0:01:05.8]} 24. Nb1 {[%clk 0:00:52.3]} 24... Bb4 {[%clk 0:00:58.2]} 25.
a3 {[%clk 0:00:52]} 25... Bf8 {[%clk 0:00:54.4]} 26. Nxf6+ {[%clk 0:00:25.2]}
26... Nxf6 {[%clk 0:00:53.2]} 27. Qf2 {[%clk 0:00:20.9]} 27... Rxc2 {[%clk
0:00:45.2]} 28. Bxc2 {[%clk 0:00:21.1]} 28... Nxd5 {[%clk 0:00:46]} 29. Bd4
{[%clk 0:00:20.8]} 29... Ne7 {[%clk 0:00:32.2]} 30. b4 {[%clk 0:00:20.7]} 30...
Ng6 {[%clk 0:00:20.4]} 31. f4 {[%clk 0:00:18.9]} 31... Ne7 {[%clk 0:00:15.5]}
32. Re1 {[%clk 0:00:18.4]} 32... Nd5 {[%clk 0:00:14.2]} 33. Rxe8 {[%clk
0:00:18.5]} 33... Qxe8 {[%clk 0:00:15.1]} 34. Nc3 {[%clk 0:00:16.5]} 34... Nxc3
{[%clk 0:00:13.5]} 35. Bxc3 {[%clk 0:00:17]} 35... Qc6 {[%clk 0:00:14]} 36. Qd2
{[%clk 0:00:13.1]} 36... Qh1+ {[%clk 0:00:13]} 37. Kf2 {[%clk 0:00:13.7]} 37...
Qxh2+ {[%clk 0:00:13.7]} 38. Ke3 {[%clk 0:00:14.3]} 38... Qxg3+ {[%clk 0:00:14]}
39. Kd4 {[%clk 0:00:13.8]} 39... g6 {[%clk 0:00:09]} 40. Qe3 {[%clk 0:00:09.3]}
40... Bg7+ {[%clk 0:00:08.7]} 41. Kd3 {[%clk 0:00:09.6]} 41... Qxe3+ {[%clk
0:00:08.9]} 42. Kxe3 {[%clk 0:00:10.2]} 42... Bxc3 {[%clk 0:00:09.8]} 43. Bd3
{[%clk 0:00:10.1]} 43... Bb2 {[%clk 0:00:09.9]} 0-1

[Event "Early-Titled-Tuesday-Blitz-April-16-2024"]
[Site "Chess.com"]
[Date "2024.04.16"]
[Round "4"]
[White "Massakru"]
[Black "Grossboss19"]
[Result "0-1"]
[WhiteElo "2367"]
[BlackElo "2587"]
[TimeControl "180+1"]
[EndTime "8:40:00 PDT"]
[Termination "Grossboss19 won by resignation"]

1. e4 {[%clk 0:03:00.9]} 1... c5 {[%clk 0:02:47.7]} 2. Nf3 {[%clk 0:03:01]} 2...
Nc6 {[%clk 0:02:47.5]} 3. c3 {[%clk 0:03:01.3]} 3... e6 {[%clk 0:02:46.7]} 4. d4
{[%clk 0:03:01.2]} 4... cxd4 {[%clk 0:02:45.1]} 5. cxd4 {[%clk 0:03:02.1]} 5...
Nf6 {[%clk 0:02:43.3]} 6. e5 {[%clk 0:02:58]} 6... Nd5 {[%clk 0:02:40.6]} 7. a3
{[%clk 0:02:53]} 7... d6 {[%clk 0:02:34.5]} 8. Bd3 {[%clk 0:02:52.9]} 8... Be7
{[%clk 0:02:27.9]} 9. O-O {[%clk 0:02:52.7]} 9... h6 {[%clk 0:02:26.3]} 10. Re1
{[%clk 0:02:47.1]} 10... dxe5 {[%clk 0:02:17.4]} 11. dxe5 {[%clk 0:02:46.7]}
11... Bd7 {[%clk 0:02:12.6]} 12. Qe2 {[%clk 0:02:45.3]} 12... Rc8 {[%clk
0:02:08.8]} 13. Bd2 {[%clk 0:02:45.5]} 13... Qb6 {[%clk 0:02:07.5]} 14. Nc3
{[%clk 0:02:38.8]} 14... Nd4 {[%clk 0:01:59.3]} 15. Nxd4 {[%clk 0:02:36.4]}
15... Qxd4 {[%clk 0:02:00.2]} 16. Nxd5 {[%clk 0:02:18.9]} 16... Qxd5 {[%clk
0:01:54]} 17. Rad1 {[%clk 0:02:10.7]} 17... Ba4 {[%clk 0:01:50.3]} 18. Rc1
{[%clk 0:02:00.8]} 18... O-O {[%clk 0:01:49.9]} 19. Bc3 {[%clk 0:01:29.5]} 19...
Rfd8 {[%clk 0:01:47.7]} 20. Bb1 {[%clk 0:01:21]} 20... Bb5 {[%clk 0:01:44.5]}
21. Qg4 {[%clk 0:01:19.7]} 21... Bg5 {[%clk 0:01:16.3]} 22. Rcd1 {[%clk
0:01:14.4]} 22... Qc4 {[%clk 0:01:11.3]} 23. Rxd8+ {[%clk 0:01:10.3]} 23... Rxd8
{[%clk 0:01:11.7]} 24. Qg3 {[%clk 0:00:40.9]} 24... Bd2 {[%clk 0:01:01.3]} 25.
Rd1 {[%clk 0:00:12.4]} 25... Qe2 {[%clk 0:00:52.3]} 26. Qf3 {[%clk 0:00:10.2]}
26... Qxf3 {[%clk 0:00:52.1]} 27. gxf3 {[%clk 0:00:10]} 27... Bg5 {[%clk
0:00:52.6]} 28. Rxd8+ {[%clk 0:00:08.7]} 28... Bxd8 {[%clk 0:00:53.5]} 29. Be4
{[%clk 0:00:08.3]} 29... Bc6 {[%clk 0:00:51.1]} 30. Bxc6 {[%clk 0:00:08]} 30...
bxc6 {[%clk 0:00:52]} 31. f4 {[%clk 0:00:08.5]} 31... Kh7 {[%clk 0:00:50.2]} 32.
Kg2 {[%clk 0:00:08.9]} 32... Kg6 {[%clk 0:00:50.5]} 33. Kf3 {[%clk 0:00:07.1]}
33... Kf5 {[%clk 0:00:50.5]} 34. Bd4 {[%clk 0:00:05.9]} 34... a6 {[%clk
0:00:48.3]} 35. Bc5 {[%clk 0:00:02.8]} 35... Ba5 {[%clk 0:00:47.5]} 36. b4
{[%clk 0:00:02.5]} 36... Bd8 {[%clk 0:00:47.1]} 37. Bf8 {[%clk 0:00:02.4]} 37...
g5 {[%clk 0:00:45.1]} 38. Bxh6 {[%clk 0:00:02.3]} 38... g4+ {[%clk 0:00:45.2]}
39. Ke3 {[%clk 0:00:02.6]} 39... Bb6+ {[%clk 0:00:45.1]} 40. Ke2 {[%clk
0:00:03]} 40... Ke4 {[%clk 0:00:44.6]} 41. Bg5 {[%clk 0:00:03.2]} 41... Bd4
{[%clk 0:00:41.3]} 42. Bh6 {[%clk 0:00:03.4]} 42... Bb2 {[%clk 0:00:40.5]} 43.
a4 {[%clk 0:00:03.8]} 43... Bc3 {[%clk 0:00:40.5]} 44. b5 {[%clk 0:00:04.1]}
44... cxb5 {[%clk 0:00:40.5]} 45. axb5 {[%clk 0:00:05]} 45... axb5 {[%clk
0:00:41.2]} 46. Kd1 {[%clk 0:00:03.8]} 46... Kd3 {[%clk 0:00:40.4]} 47. Kc1
{[%clk 0:00:03.8]} 47... Bd4 {[%clk 0:00:40.3]} 48. Kb1 {[%clk 0:00:03.4]} 48...
Bxf2 {[%clk 0:00:35.8]} 49. Kb2 {[%clk 0:00:03.5]} 49... Bg1 {[%clk 0:00:36.5]}
50. f5 {[%clk 0:00:01.2]} 50... Bxh2 {[%clk 0:00:35]} 51. fxe6 {[%clk
0:00:01.3]} 51... fxe6 {[%clk 0:00:35.9]} 52. Kb3 {[%clk 0:00:01.6]} 52... Bxe5
{[%clk 0:00:35.9]} 53. Kb4 {[%clk 0:00:01.8]} 53... g3 {[%clk 0:00:34.6]} 0-1

[Event "Early-Titled-Tuesday-Blitz-April-16-2024"]
[Site "Chess.com"]
[Date "2024.04.16"]
[Round "4"]
[White "JG-17"]
[Black "CD3m"]
[Result "0-1"]
[WhiteElo "2517"]
[BlackElo "2356"]
[TimeControl "180+1"]
[EndTime "8:40:07 PDT"]
[Termination "CD3m won by resignation"]

1. d4 {[%clk 0:03:00.9]} 1... d5 {[%clk 0:02:59.4]} 2. c4 {[%clk 0:03:00.9]}
2... c6 {[%clk 0:02:59.7]} 3. Nf3 {[%clk 0:03:00.5]} 3... Nf6 {[%clk 0:03:00.1]}
4. e3 {[%clk 0:03:01]} 4... Bf5 {[%clk 0:02:59.1]} 5. Nc3 {[%clk 0:03:01.4]}
5... e6 {[%clk 0:02:59.3]} 6. Be2 {[%clk 0:03:00.5]} 6... Nbd7 {[%clk
0:02:58.9]} 7. O-O {[%clk 0:02:59.7]} 7... Bd6 {[%clk 0:02:58.6]} 8. Nh4 {[%clk
0:02:57.6]} 8... Bg6 {[%clk 0:02:58.1]} 9. Nxg6 {[%clk 0:02:56.5]} 9... hxg6
{[%clk 0:02:57.9]} 10. h3 {[%clk 0:02:56.9]} 10... Qe7 {[%clk 0:02:55.1]} 11. a3
{[%clk 0:02:54.9]} 11... dxc4 {[%clk 0:02:52]} 12. Bxc4 {[%clk 0:02:54.2]} 12...
e5 {[%clk 0:02:52.6]} 13. d5 {[%clk 0:02:49.7]} 13... Nb6 {[%clk 0:02:51.8]} 14.
dxc6 {[%clk 0:02:44.5]} 14... Nxc4 {[%clk 0:02:50.8]} 15. cxb7 {[%clk
0:02:44.9]} 15... Qxb7 {[%clk 0:02:36.2]} 16. Qa4+ {[%clk 0:02:44.7]} 16... Qd7
{[%clk 0:02:33.6]} 17. Qxc4 {[%clk 0:02:44.8]} 17... O-O {[%clk 0:02:33.4]} 18.
Rd1 {[%clk 0:02:43.5]} 18... Rac8 {[%clk 0:02:27.4]} 19. Qd3 {[%clk 0:02:41.3]}
19... Rfd8 {[%clk 0:02:14.4]} 20. b4 {[%clk 0:02:34.7]} 20... e4 {[%clk
0:02:07.2]} 21. Qd4 {[%clk 0:02:17.9]} 21... Rxc3 {[%clk 0:02:05.4]} 22. Qxc3
{[%clk 0:02:14.2]} 22... Bh2+ {[%clk 0:02:05.3]} 23. Kxh2 {[%clk 0:02:14.4]}
23... Qxd1 {[%clk 0:02:05.2]} 24. Bb2 {[%clk 0:02:07.5]} 24... Qe2 {[%clk
0:02:02.3]} 25. Qc7 {[%clk 0:01:25.5]} 25... Rd2 {[%clk 0:01:56.3]} 26. Bxf6
{[%clk 0:01:22.9]} 26... Qxf2 {[%clk 0:01:52.2]} 27. Qc8+ {[%clk 0:01:04.8]}
27... Kh7 {[%clk 0:01:50.9]} 28. Qg4 {[%clk 0:01:05.5]} 28... gxf6 {[%clk
0:01:46.2]} 29. Qxe4 {[%clk 0:00:59.7]} 29... Re2 {[%clk 0:01:45.1]} 30. Qd5
{[%clk 0:00:55]} 30... Kg7 {[%clk 0:01:42.9]} 31. Rc1 {[%clk 0:00:50.3]} 31...
Rxe3 {[%clk 0:01:40]} 32. Qd6 {[%clk 0:00:40.7]} 32... Re2 {[%clk 0:01:35.5]}
33. Qg3 {[%clk 0:00:32.1]} 33... Qxg3+ {[%clk 0:01:34]} 34. Kxg3 {[%clk
0:00:31.8]} 34... Re3+ {[%clk 0:01:34.6]} 35. Kf4 {[%clk 0:00:31.3]} 35... Rxa3
{[%clk 0:01:34.7]} 36. Rc7 {[%clk 0:00:30]} 36... Ra4 {[%clk 0:01:32.8]} 37. Kf3
{[%clk 0:00:25.8]} 37... Rxb4 {[%clk 0:01:31.4]} 38. Rxa7 {[%clk 0:00:26]} 38...
g5 {[%clk 0:01:32]} 39. g4 {[%clk 0:00:25.8]} 39... Kg6 {[%clk 0:01:32]} 40. Ra5
{[%clk 0:00:25.6]} 40... Rb3+ {[%clk 0:01:32.2]} 41. Kg2 {[%clk 0:00:25.6]}
41... Rc3 {[%clk 0:01:31.7]} 42. Rf5 {[%clk 0:00:25.3]} 42... Rc4 {[%clk
0:01:31.2]} 43. Ra5 {[%clk 0:00:24.6]} 43... Rf4 {[%clk 0:01:31.2]} 44. Ra6
{[%clk 0:00:20]} 44... Kg7 {[%clk 0:01:30.3]} 45. Kg3 {[%clk 0:00:19.6]} 45...
f5 {[%clk 0:01:29.2]} 46. Ra5 {[%clk 0:00:18.1]} 46... Kg6 {[%clk 0:01:26.2]}
47. Ra6+ {[%clk 0:00:16.7]} 47... f6 {[%clk 0:01:25.9]} 48. Ra7 {[%clk
0:00:13.8]} 48... Rb4 {[%clk 0:01:23.1]} 49. gxf5+ {[%clk 0:00:12.4]} 49... Kxf5
{[%clk 0:01:23.2]} 50. Ra5+ {[%clk 0:00:13.1]} 50... Kg6 {[%clk 0:01:23.7]} 51.
Ra6 {[%clk 0:00:11.2]} 51... Rc4 {[%clk 0:01:24.3]} 52. Rb6 {[%clk 0:00:11.1]}
52... Rd4 {[%clk 0:01:24.6]} 53. Ra6 {[%clk 0:00:11.5]} 53... Re4 {[%clk
0:01:24.6]} 54. Rb6 {[%clk 0:00:12.1]} 54... Kf5 {[%clk 0:01:24.8]} 55. Rb5+
{[%clk 0:00:10.6]} 55... Re5 {[%clk 0:01:25.4]} 56. Rb3 {[%clk 0:00:11.5]} 56...
Rd5 {[%clk 0:01:23.9]} 57. Rf3+ {[%clk 0:00:12]} 57... Kg6 {[%clk 0:01:24.4]}
58. Ra3 {[%clk 0:00:12.6]} 58... f5 {[%clk 0:01:24.2]} 59. Ra6+ {[%clk
0:00:12.4]} 59... Kh5 {[%clk 0:01:24.7]} 60. Ra3 {[%clk 0:00:12.9]} 60... Re5
{[%clk 0:01:24.8]} 61. Rb3 {[%clk 0:00:10]} 61... f4+ {[%clk 0:01:24.8]} 62. Kf3
{[%clk 0:00:09.6]} 62... Kh4 {[%clk 0:01:23.8]} 63. Kf2 {[%clk 0:00:06.5]} 63...
Re3 {[%clk 0:01:22.2]} 64. Rb5 {[%clk 0:00:03.2]} 64... Rxh3 {[%clk 0:01:20.8]}
65. Kg2 {[%clk 0:00:03.6]} 65... Rg3+ {[%clk 0:01:21]} 66. Kh2 {[%clk 0:00:04]}
66... Kg4 {[%clk 0:01:21.4]} 67. Rb7 {[%clk 0:00:03.8]} 67... Rc3 {[%clk
0:01:22]} 68. Kg2 {[%clk 0:00:03.9]} 68... Rc2+ {[%clk 0:01:22.4]} 69. Kg1
{[%clk 0:00:04.2]} 69... Kf3 {[%clk 0:01:23]} 70. Rb3+ {[%clk 0:00:03.8]} 70...
Kg4 {[%clk 0:01:23.5]} 71. Kh1 {[%clk 0:00:04.2]} 71... f3 {[%clk 0:01:23.4]}
72. Rb1 {[%clk 0:00:02.3]} 72... Kg3 {[%clk 0:01:22.4]} 73. Rg1+ {[%clk
0:00:02.8]} 73... Rg2 {[%clk 0:01:21.8]} 74. Rb1 {[%clk 0:00:02]} 74... Rh2+
{[%clk 0:01:20.3]} 75. Kg1 {[%clk 0:00:02.1]} 75... g4 {[%clk 0:01:20.6]} 76.
Rc1 {[%clk 0:00:01.6]} 76... f2+ {[%clk 0:01:20.7]} 77. Kf1 {[%clk 0:00:02.1]}
77... Rh1+ {[%clk 0:01:21.3]} 78. Ke2 {[%clk 0:00:02.8]} 78... Rxc1 {[%clk
0:01:21.9]} 0-1

[Event "Early-Titled-Tuesday-Blitz-April-16-2024"]
[Site "Chess.com"]
[Date "2024.04.16"]
[Round "4"]
[White "JAN2404"]
[Black "MdSharifHossain"]
[Result "0-1"]
[WhiteElo "1909"]
[BlackElo "2289"]
[TimeControl "180+1"]
[EndTime "8:40:10 PDT"]
[Termination "MdSharifHossain won on time"]

1. e4 {[%clk 0:03:00.9]} 1... e5 {[%clk 0:02:59.6]} 2. Nc3 {[%clk 0:02:59.6]}
2... Nf6 {[%clk 0:02:57.9]} 3. Bc4 {[%clk 0:02:59.3]} 3... Bc5 {[%clk
0:02:56.5]} 4. Nf3 {[%clk 0:02:51]} 4... d6 {[%clk 0:02:56.2]} 5. d3 {[%clk
0:02:49.8]} 5... Nc6 {[%clk 0:02:55.5]} 6. Na4 {[%clk 0:02:47.1]} 6... Bg4
{[%clk 0:02:41.7]} 7. Nxc5 {[%clk 0:02:43.2]} 7... dxc5 {[%clk 0:02:40.8]} 8. c3
{[%clk 0:02:42.5]} 8... O-O {[%clk 0:02:39.6]} 9. h3 {[%clk 0:02:41.3]} 9... Bh5
{[%clk 0:02:39.2]} 10. O-O {[%clk 0:02:41.3]} 10... Na5 {[%clk 0:02:35.1]} 11.
Bb3 {[%clk 0:02:11.8]} 11... c4 {[%clk 0:02:23.2]} 12. Bc2 {[%clk 0:01:58.2]}
12... cxd3 {[%clk 0:02:17.3]} 13. Bxd3 {[%clk 0:01:58.1]} 13... c5 {[%clk
0:02:13.5]} 14. g4 {[%clk 0:01:55.5]} 14... c4 {[%clk 0:02:05.1]} 15. Bc2 {[%clk
0:01:39.2]} 15... Bg6 {[%clk 0:02:02.9]} 16. Qe2 {[%clk 0:01:35.2]} 16... Qc7
{[%clk 0:01:56.5]} 17. Rd1 {[%clk 0:01:24]} 17... b5 {[%clk 0:01:49.6]} 18. Bg5
{[%clk 0:01:18.6]} 18... Rad8 {[%clk 0:01:43.8]} 19. a4 {[%clk 0:00:57.1]} 19...
a6 {[%clk 0:01:41.5]} 20. axb5 {[%clk 0:00:36.1]} 20... axb5 {[%clk 0:01:40.6]}
21. Rxd8 {[%clk 0:00:27]} 21... Rxd8 {[%clk 0:01:39]} 22. Rd1 {[%clk 0:00:27.7]}
22... Nb7 {[%clk 0:01:33.7]} 23. Bh4 {[%clk 0:00:21.6]} 23... h6 {[%clk
0:01:25.2]} 24. Bg3 {[%clk 0:00:21]} 24... Re8 {[%clk 0:01:19.6]} 25. g5 {[%clk
0:00:17.4]} 25... hxg5 {[%clk 0:01:16.1]} 26. Nxg5 {[%clk 0:00:18.3]} 26... Nc5
{[%clk 0:01:10.6]} 27. b4 {[%clk 0:00:17.1]} 27... Bh5 {[%clk 0:01:08.1]} 28.
Nf3 {[%clk 0:00:11.2]} 28... Nd3 {[%clk 0:01:00.1]} 29. Bxd3 {[%clk 0:00:10.8]}
29... cxd3 {[%clk 0:00:59.7]} 30. Qxd3 {[%clk 0:00:11.5]} 30... Qc8 {[%clk
0:00:50.4]} 31. Kg2 {[%clk 0:00:10.8]} 31... Bg6 {[%clk 0:00:22.8]} 32. Ng5
{[%clk 0:00:06.1]} 32... Nh5 {[%clk 0:00:20.5]} 33. Qxb5 {[%clk 0:00:04.1]}
33... Nf4+ {[%clk 0:00:16.6]} 34. Bxf4 {[%clk 0:00:03.9]} 34... exf4 {[%clk
0:00:16.4]} 35. f3 {[%clk 0:00:03.1]} 35... f6 {[%clk 0:00:14.5]} 36. Qd5+
{[%clk 0:00:02.4]} 36... Kh8 {[%clk 0:00:13.6]} 37. Nf7+ {[%clk 0:00:02.4]}
37... Kh7 {[%clk 0:00:07.5]} 38. Nd6 {[%clk 0:00:01.7]} 38... Qa6 {[%clk
0:00:03.8]} 0-1

[Event "Early-Titled-Tuesday-Blitz-April-16-2024"]
[Site "Chess.com"]
[Date "2024.04.16"]
[Round "4"]
[White "Payyappat"]
[Black "Witik"]
[Result "0-1"]
[WhiteElo "2532"]
[BlackElo "2717"]
[TimeControl "180+1"]
[EndTime "8:40:11 PDT"]
[Termination "Witik won on time"]

1. e4 {[%clk 0:03:00.9]} 1... c6 {[%clk 0:02:58.8]} 2. d4 {[%clk 0:02:59.2]}
2... d5 {[%clk 0:02:59.2]} 3. Nc3 {[%clk 0:02:59.8]} 3... dxe4 {[%clk
0:02:59.4]} 4. Nxe4 {[%clk 0:03:00.7]} 4... Nf6 {[%clk 0:03:00.1]} 5. Nxf6+
{[%clk 0:03:00.7]} 5... exf6 {[%clk 0:03:01]} 6. Bc4 {[%clk 0:02:59.1]} 6... Bd6
{[%clk 0:03:01.5]} 7. Qe2+ {[%clk 0:02:58.9]} 7... Be7 {[%clk 0:03:02.2]} 8. Nf3
{[%clk 0:02:57.7]} 8... O-O {[%clk 0:03:02.9]} 9. O-O {[%clk 0:02:58.1]} 9...
Bd6 {[%clk 0:03:03.5]} 10. Re1 {[%clk 0:02:58.4]} 10... a5 {[%clk 0:03:02.9]}
11. c3 {[%clk 0:02:58.4]} 11... Na6 {[%clk 0:03:03]} 12. Bb3 {[%clk 0:02:57.1]}
12... Nc7 {[%clk 0:02:56]} 13. Bc2 {[%clk 0:02:54.3]} 13... Re8 {[%clk
0:02:46.3]} 14. Be3 {[%clk 0:02:53.5]} 14... Nd5 {[%clk 0:02:40.4]} 15. Qd3
{[%clk 0:02:52.7]} 15... g6 {[%clk 0:02:34.6]} 16. Bb3 {[%clk 0:02:25]} 16...
Bf5 {[%clk 0:02:10.5]} 17. Qd2 {[%clk 0:02:21.3]} 17... a4 {[%clk 0:01:53.6]}
18. Bxd5 {[%clk 0:02:17.1]} 18... cxd5 {[%clk 0:01:53.1]} 19. Nh4 {[%clk
0:02:13.7]} 19... Bd7 {[%clk 0:01:44.6]} 20. Bf4 {[%clk 0:02:07.2]} 20... Bf8
{[%clk 0:01:33]} 21. Bh6 {[%clk 0:01:14]} 21... Bd6 {[%clk 0:01:20.6]} 22. Qd3
{[%clk 0:01:03.1]} 22... Qb6 {[%clk 0:01:17.7]} 23. Qf3 {[%clk 0:01:00.7]} 23...
Bf8 {[%clk 0:01:07.6]} 24. Bxf8 {[%clk 0:00:57.9]} 24... Rxe1+ {[%clk 0:01:06]}
25. Rxe1 {[%clk 0:00:56.6]} 25... Rxf8 {[%clk 0:01:06.9]} 26. Qxd5 {[%clk
0:00:45.2]} 26... Be6 {[%clk 0:01:07.1]} 27. Qf3 {[%clk 0:00:42.1]} 27... Kg7
{[%clk 0:01:07.6]} 28. d5 {[%clk 0:00:40.6]} 28... Bd7 {[%clk 0:01:07.6]} 29. h3
{[%clk 0:00:28.4]} 29... Qxb2 {[%clk 0:01:05.9]} 30. Re7 {[%clk 0:00:27.5]}
30... Bc8 {[%clk 0:00:57.1]} 31. d6 {[%clk 0:00:21.3]} 31... Qd2 {[%clk
0:00:57.2]} 32. Qg3 {[%clk 0:00:15.4]} 32... Rd8 {[%clk 0:00:43.6]} 33. Rc7
{[%clk 0:00:13]} 33... Be6 {[%clk 0:00:39.5]} 34. Rxb7 {[%clk 0:00:13.2]} 34...
a3 {[%clk 0:00:29]} 35. Ra7 {[%clk 0:00:11.7]} 35... Qxa2 {[%clk 0:00:28.9]} 36.
c4 {[%clk 0:00:07.5]} 36... Qb1+ {[%clk 0:00:27.2]} 37. Kh2 {[%clk 0:00:07.6]}
37... a2 {[%clk 0:00:28.1]} 38. Qa3 {[%clk 0:00:07.5]} 38... Qe4 {[%clk
0:00:13.5]} 39. g3 {[%clk 0:00:04.3]} 39... Qxc4 {[%clk 0:00:10.7]} 40. Ra4
{[%clk 0:00:02.5]} 40... Qc2 {[%clk 0:00:07.9]} 41. Kg2 {[%clk 0:00:01.2]} 41...
Bd5+ {[%clk 0:00:07.6]} 42. Nf3 {[%clk 0:00:01]} 42... Qd1 {[%clk 0:00:04.3]}
0-1

[Event "Early-Titled-Tuesday-Blitz-April-16-2024"]
[Site "Chess.com"]
[Date "2024.04.16"]
[Round "4"]
[White "JJDAREK"]
[Black "imdvb6307"]
[Result "1-0"]
[WhiteElo "2320"]
[BlackElo "2503"]
[TimeControl "180+1"]
[EndTime "8:40:11 PDT"]
[Termination "JJDAREK won on time"]

1. d4 {[%clk 0:03:00.9]} 1... f5 {[%clk 0:02:58.8]} 2. Nf3 {[%clk 0:02:59.9]}
2... g6 {[%clk 0:02:56]} 3. Bf4 {[%clk 0:02:59.1]} 3... Bg7 {[%clk 0:02:53.4]}
4. e3 {[%clk 0:02:59.4]} 4... Nf6 {[%clk 0:02:52.4]} 5. c4 {[%clk 0:02:59.4]}
5... O-O {[%clk 0:02:51.8]} 6. Nc3 {[%clk 0:02:59.7]} 6... d6 {[%clk 0:02:51.9]}
7. h3 {[%clk 0:02:57.2]} 7... c6 {[%clk 0:02:38.3]} 8. Be2 {[%clk 0:02:48.2]}
8... Qc7 {[%clk 0:02:34.4]} 9. O-O {[%clk 0:02:46.3]} 9... a5 {[%clk 0:02:23.5]}
10. c5 {[%clk 0:02:33.7]} 10... Qd8 {[%clk 0:02:11.1]} 11. a3 {[%clk 0:02:03.7]}
11... Na6 {[%clk 0:01:50.3]} 12. b4 {[%clk 0:01:56.2]} 12... dxc5 {[%clk
0:01:50.1]} 13. bxc5 {[%clk 0:01:49.9]} 13... h6 {[%clk 0:01:33.2]} 14. Qb3+
{[%clk 0:01:42.4]} 14... Kh7 {[%clk 0:01:32.3]} 15. Ne5 {[%clk 0:01:18.3]} 15...
Nc7 {[%clk 0:01:27.6]} 16. Bc4 {[%clk 0:01:12.6]} 16... Ncd5 {[%clk 0:01:14.5]}
17. Nxd5 {[%clk 0:01:06]} 17... Nxd5 {[%clk 0:01:13.9]} 18. Bxd5 {[%clk
0:01:04.8]} 18... a4 {[%clk 0:00:56]} 19. Qa2 {[%clk 0:00:46]} 19... cxd5 {[%clk
0:00:55.1]} 20. Rab1 {[%clk 0:00:43.7]} 20... g5 {[%clk 0:00:54]} 21. Bh2 {[%clk
0:00:42.7]} 21... f4 {[%clk 0:00:54.4]} 22. exf4 {[%clk 0:00:36.8]} 22... gxf4
{[%clk 0:00:54.2]} 23. Rb6 {[%clk 0:00:34.5]} 23... Bxe5 {[%clk 0:00:31.7]} 24.
dxe5 {[%clk 0:00:35.4]} 24... f3 {[%clk 0:00:31.8]} 25. Qd2 {[%clk 0:00:29.6]}
25... e6 {[%clk 0:00:29.6]} 26. Rfb1 {[%clk 0:00:20.4]} 26... Rf7 {[%clk
0:00:25.9]} 27. Rd6 {[%clk 0:00:18.4]} 27... Qh4 {[%clk 0:00:22.6]} 28. Rb4
{[%clk 0:00:09.3]} 28... Qh5 {[%clk 0:00:20.6]} 29. Rf4 {[%clk 0:00:08.5]} 29...
Rxf4 {[%clk 0:00:19.8]} 30. Qxf4 {[%clk 0:00:09.4]} 30... fxg2 {[%clk
0:00:15.6]} 31. Bg3 {[%clk 0:00:08.1]} 31... Qe8 {[%clk 0:00:11]} 32. Qf6 {[%clk
0:00:07.3]} 32... Bd7 {[%clk 0:00:08.1]} 33. Bh4 {[%clk 0:00:06.1]} 33... Ra6
{[%clk 0:00:05.4]} 34. Rxa6 {[%clk 0:00:05.4]} 34... bxa6 {[%clk 0:00:05.3]} 35.
Qf4 {[%clk 0:00:05.3]} 35... Qg6 {[%clk 0:00:04.6]} 36. Bf6 {[%clk 0:00:05.1]}
36... Qf7 {[%clk 0:00:04.6]} 37. Qd2 {[%clk 0:00:04.1]} 37... Bb5 {[%clk
0:00:03.9]} 38. Qa5 {[%clk 0:00:03.2]} 38... Kg6 {[%clk 0:00:03.3]} 39. Qd8
{[%clk 0:00:03]} 39... Kf5 {[%clk 0:00:03.3]} 40. Qb6 {[%clk 0:00:02.1]} 40...
Ke4 {[%clk 0:00:03.1]} 41. c6 {[%clk 0:00:02.5]} 41... Qh5 {[%clk 0:00:01.6]}
42. Qe3+ {[%clk 0:00:02.8]} 42... Kf5 {[%clk 0:00:01.2]} 43. Kxg2 {[%clk
0:00:02.3]} 1-0